[Event "Titled Tuesday Blitz August 16 Early 2022"]
[White "Turzo, Attila"]
[Black "Molina, Roberto Junio Brito"]
[WhiteFideId "704954"]
[BlackFideId "2109450"]
[WhiteElo "2298"]
[BlackElo "2403"]
[Result "0-1"]
[Round "04"]
[TimeControl "180+2"]
[Date "2022.08.18"]
[WhiteClock "0:00:00"]
[BlackClock "0:00:00"]

1. e4 {[%clk 0:00:00]}  c6 {[%clk 0:00:00]} 2. d4 {[%clk 0:00:00]}  d5 {[%clk 0:00:00]} 3. e5 {[%clk 0:00:00]}  Bf5 {[%clk 0:00:00]} 4. Nd2 {[%clk 0:00:00]}  e6 {[%clk 0:00:00]} 5. Nb3 {[%clk 0:00:00]}  Nd7 {[%clk 0:00:00]} 6. Nf3 {[%clk 0:00:00]}  Bg6 {[%clk 0:00:00]} 7. Be2 {[%clk 0:00:00]}  Ne7 {[%clk 0:00:00]} 8. O-O {[%clk 0:00:00]}  Nf5 {[%clk 0:00:00]} 9. c4 {[%clk 0:00:00]}  dxc4 {[%clk 0:00:00]} 10. Bxc4 {[%clk 0:00:00]}  Nb6 {[%clk 0:00:00]} 11. Be2 {[%clk 0:00:00]}  Nd5 {[%clk 0:00:00]} 12. Bd2 {[%clk 0:00:00]}  Be7 {[%clk 0:00:00]} 13. Rc1 {[%clk 0:00:00]}  O-O {[%clk 0:00:00]} 14. Nc5 {[%clk 0:00:00]}  b6 {[%clk 0:00:00]} 15. Ne4 {[%clk 0:00:00]}  Qd7 {[%clk 0:00:00]} 16. Qa4 {[%clk 0:00:00]}  Rfc8 {[%clk 0:00:00]} 17. Rfd1 {[%clk 0:00:00]}  Rc7 {[%clk 0:00:00]} 18. Ng3 {[%clk 0:00:00]}  Nxg3 {[%clk 0:00:00]} 19. hxg3 {[%clk 0:00:00]}  Bh5 {[%clk 0:00:00]} 20. Bd3 {[%clk 0:00:00]}  Bf8 {[%clk 0:00:00]} 21. Re1 {[%clk 0:00:00]}  Ne7 {[%clk 0:00:00]} 22. Be4 {[%clk 0:00:00]}  Bg6 {[%clk 0:00:00]} 23. Bb4 {[%clk 0:00:00]}  Bxe4 {[%clk 0:00:00]} 24. Rxe4 {[%clk 0:00:00]}  Ng6 {[%clk 0:00:00]} 25. Bxf8 {[%clk 0:00:00]}  Nxf8 {[%clk 0:00:00]} 26. Re2 {[%clk 0:00:00]}  Rac8 {[%clk 0:00:00]} 27. Rec2 {[%clk 0:00:00]}  c5 {[%clk 0:00:00]} 28. Qxd7 {[%clk 0:00:00]}  Nxd7 {[%clk 0:00:00]} 29. dxc5 {[%clk 0:00:00]}  Rxc5 {[%clk 0:00:00]} 30. Rxc5 {[%clk 0:00:00]}  Rxc5 {[%clk 0:00:00]} 31. Rxc5 {[%clk 0:00:00]}  Nxc5 {[%clk 0:00:00]} 32. Kf1 {[%clk 0:00:00]}  Nd3 {[%clk 0:00:00]} 33. b3 {[%clk 0:00:00]}  Nc1 {[%clk 0:00:00]} 34. Nd4 {[%clk 0:00:00]}  Nxa2 {[%clk 0:00:00]} 35. Nc6 {[%clk 0:00:00]}  a5 {[%clk 0:00:00]} 36. Ne7+ {[%clk 0:00:00]}  Kf8 {[%clk 0:00:00]} 37. Nc8 {[%clk 0:00:00]}  b5 {[%clk 0:00:00]} 38. Nd6 {[%clk 0:00:00]}  Nc1 {[%clk 0:00:00]} 39. Nxb5 {[%clk 0:00:00]}  Nxb3 {[%clk 0:00:00]} 40. Ke2 {[%clk 0:00:00]}  Ke7 {[%clk 0:00:00]} 41. Kd3 {[%clk 0:00:00]}  a4 {[%clk 0:00:00]} 42. Kc4 {[%clk 0:00:00]}  Nd2+ {[%clk 0:00:00]} 43. Kd3 {[%clk 0:00:00]}  Nb3 {[%clk 0:00:00]} 44. Kc4 {[%clk 0:00:00]}  h5 {[%clk 0:00:00]} 45. Nc3 {[%clk 0:00:00]}  Na5+ {[%clk 0:00:00]} 46. Kb5 {[%clk 0:00:00]}  Nb3 {[%clk 0:00:00]} 47. Kc4 {[%clk 0:00:00]}  f6 {[%clk 0:00:00]} 48. exf6+ {[%clk 0:00:00]}  Kxf6 {[%clk 0:00:00]} 49. Nxa4 {[%clk 0:00:00]}  Nd2+ {[%clk 0:00:00]} 50. Kd3 {[%clk 0:00:00]}  Nb3 {[%clk 0:00:00]} 51. Ke3 {[%clk 0:00:00]}  Ke5 {[%clk 0:00:00]} 52. Nc3 {[%clk 0:00:00]}  Nc5 {[%clk 0:00:00]} 53. Nb5 {[%clk 0:00:00]}  Nd7 {[%clk 0:00:00]} 54. Nd4 {[%clk 0:00:00]}  Nf6 {[%clk 0:00:00]} 55. Nf3+ {[%clk 0:00:00]}  Kf5 {[%clk 0:00:00]} 56. Nd4+ {[%clk 0:00:00]}  Ke5 {[%clk 0:00:00]} 57. Nf3+ {[%clk 0:00:00]}  Kd5 {[%clk 0:00:00]} 58. Ng5 {[%clk 0:00:00]}  e5 {[%clk 0:00:00]} 59. f3 {[%clk 0:00:00]}  Kd6 {[%clk 0:00:00]} 60. Ne4+ {[%clk 0:00:00]}  Ke6 {[%clk 0:00:00]} 61. Ng5+ {[%clk 0:00:00]}  Kf5 {[%clk 0:00:00]} 62. Nf7 {[%clk 0:00:00]}  Nd5+ {[%clk 0:00:00]} 63. Kd3 {[%clk 0:00:00]}  Ne7 {[%clk 0:00:00]} 64. Nd6+ {[%clk 0:00:00]}  Ke6 {[%clk 0:00:00]} 65. Ne4 {[%clk 0:00:00]}  Nf5 {[%clk 0:00:00]} 66. Ke2 {[%clk 0:00:00]}  Kd5 {[%clk 0:00:00]} 67. Kf2 {[%clk 0:00:00]}  Nd4 {[%clk 0:00:00]} 68. Ng5 {[%clk 0:00:00]}  Kd6 {[%clk 0:00:00]} 69. Ke3 {[%clk 0:00:00]}  Nf5+ {[%clk 0:00:00]} 70. Kf2 {[%clk 0:00:00]}  Ke7 {[%clk 0:00:00]} 71. Ne4 {[%clk 0:00:00]}  Ke6 {[%clk 0:00:00]} 72. Ng5+ {[%clk 0:00:00]}  Kf6 {[%clk 0:00:00]} 73. Ne4+ {[%clk 0:00:00]}  Kg6 {[%clk 0:00:00]} 74. Nc5 {[%clk 0:00:00]}  Ne7 {[%clk 0:00:00]} 75. Nd7 {[%clk 0:00:00]}  Kf5 {[%clk 0:00:00]} 76. Nc5 {[%clk 0:00:00]}  Nd5 {[%clk 0:00:00]} 77. Ne4 {[%clk 0:00:00]}  Nf6 {[%clk 0:00:00]} 78. Nd6+ {[%clk 0:00:00]}  Ke6 {[%clk 0:00:00]} 79. Nc4 {[%clk 0:00:00]}  g6 {[%clk 0:00:00]} 80. Nd2 {[%clk 0:00:00]}  Kf5 {[%clk 0:00:00]} 81. Ke3 {[%clk 0:00:00]}  g5 {[%clk 0:00:00]} 82. Kf2 {[%clk 0:00:00]}  g4 {[%clk 0:00:00]} 83. Ke3 {[%clk 0:00:00]}  Nd5+ {[%clk 0:00:00]} 84. Kf2 {[%clk 0:00:00]}  Ne7 {[%clk 0:00:00]} 85. Ne4 {[%clk 0:00:00]}  Ng6 {[%clk 0:00:00]} 86. Nd6+ {[%clk 0:00:00]}  Ke6 {[%clk 0:00:00]} 87. Ne4 {[%clk 0:00:00]}  Ne7 {[%clk 0:00:00]} 88. Ng5+ {[%clk 0:00:00]}  Kf5 {[%clk 0:00:00]} 89. Nf7 {[%clk 0:00:00]}  Nd5 {[%clk 0:00:00]} 90. Nd6+ {[%clk 0:00:00]}  Kf6 {[%clk 0:00:00]} 91. Ne4+ {[%clk 0:00:00]}  Ke6 {[%clk 0:00:00]} 92. Ng5+ {[%clk 0:00:00]}  Kf5 {[%clk 0:00:00]} 93. Ne4 {[%clk 0:00:00]}  Nf6 {[%clk 0:00:00]} 94. Nd6+ {[%clk 0:00:00]}  Ke6 {[%clk 0:00:00]} 95. Nc4 {[%clk 0:00:00]}  Kd5 {[%clk 0:00:00]} 96. Ne3+ {[%clk 0:00:00]}  Kd4 {[%clk 0:00:00]} 97. Nf5+ {[%clk 0:00:00]}  Kd3 {[%clk 0:00:00]} 98. Ng7 {[%clk 0:00:00]}  e4 {[%clk 0:00:00]} 99. Nf5 {[%clk 0:00:00]}  Nd5 {[%clk 0:00:00]} 0-1


[Site "https://www.chess.com"]

[Event "Titled Tuesday Blitz August 16 Early 2022"]
[White "Vachylia, Andrii"]
[Black "Hansen, Eric"]
[WhiteFideId "14137224"]
[BlackFideId "2606771"]
[WhiteElo "2318"]
[BlackElo "2568"]
[Result "0-1"]
[Round "04"]
[TimeControl "180+1"]
[Date "2022.08.16"]
[WhiteClock "0:00:03"]
[BlackClock "0:00:04"]

1. e4 {[%clk 0:02:57]}  c5 {[%clk 0:02:49]} 2. Nf3 {[%clk 0:02:56]}  e6 {[%clk 0:02:49]} 3. d4 {[%clk 0:02:56]}  cxd4 {[%clk 0:02:50]} 4. Nxd4 {[%clk 0:02:57]}  a6 {[%clk 0:02:49]} 5. Bd3 {[%clk 0:02:57]}  Qb6 {[%clk 0:02:49]} 6. c3 {[%clk 0:02:54]}  Nc6 {[%clk 0:02:48]} 7. O-O {[%clk 0:02:43]}  Nf6 {[%clk 0:02:28]} 8. Nd2 {[%clk 0:02:39]}  Qc7 {[%clk 0:02:25]} 9. f4 {[%clk 0:02:31]}  Bc5 {[%clk 0:02:18]} 10. Nf3 {[%clk 0:02:28]}  d6 {[%clk 0:02:16]} 11. Kh1 {[%clk 0:02:19]}  e5 {[%clk 0:02:16]} 12. Nb3 {[%clk 0:02:16]}  Ba7 {[%clk 0:02:14]} 13. fxe5 {[%clk 0:02:16]}  dxe5 {[%clk 0:02:14]} 14. Bg5 {[%clk 0:02:15]}  Ng4 {[%clk 0:02:12]} 15. Qe2 {[%clk 0:02:10]}  h6 {[%clk 0:02:12]} 16. Bd2 {[%clk 0:02:09]}  O-O {[%clk 0:02:07]} 17. h3 {[%clk 0:02:09]}  Nf6 {[%clk 0:02:07]} 18. Nh4 {[%clk 0:02:08]}  Qe7 {[%clk 0:02:04]} 19. Bc4 {[%clk 0:01:59]}  b5 {[%clk 0:01:06]} 20. Bd3 {[%clk 0:01:29]}  Rd8 {[%clk 0:00:53]} 21. Nf5 {[%clk 0:01:15]}  Bxf5 {[%clk 0:00:53]} 22. Rxf5 {[%clk 0:01:16]}  Qe6 {[%clk 0:00:50]} 23. Raf1 {[%clk 0:01:12]}  Ne7 {[%clk 0:00:51]} 24. R5f3 {[%clk 0:00:57]}  Ng6 {[%clk 0:00:45]} 25. g4 {[%clk 0:00:43]}  Nf4 {[%clk 0:00:32]} 26. Bxf4 {[%clk 0:00:41]}  exf4 {[%clk 0:00:32]} 27. Rxf4 {[%clk 0:00:38]}  Rac8 {[%clk 0:00:18]} 28. e5 {[%clk 0:00:29]}  Qd5+ {[%clk 0:00:18]} 29. R4f3 {[%clk 0:00:27]}  Re8 {[%clk 0:00:15]} 30. Qg2 {[%clk 0:00:14]}  Rxe5 {[%clk 0:00:15]} 31. Rf5 {[%clk 0:00:12]}  Qd6 {[%clk 0:00:07]} 32. Qg3 {[%clk 0:00:10]}  Rce8 {[%clk 0:00:06]} 33. Rxe5 {[%clk 0:00:08]}  Rxe5 {[%clk 0:00:07]} 34. Bf5 {[%clk 0:00:05]}  Bb8 {[%clk 0:00:07]} 35. Nc1 {[%clk 0:00:04]}  g6 {[%clk 0:00:06]} 36. Bb1 {[%clk 0:00:04]}  Qc6+ {[%clk 0:00:06]} 37. Qg2 {[%clk 0:00:04]}  Qe6 {[%clk 0:00:07]} 38. Qf2 {[%clk 0:00:03]}  Ne4 {[%clk 0:00:06]} 39. Qg2 {[%clk 0:00:03]}  h5 {[%clk 0:00:06]} 40. Nd3 {[%clk 0:00:03]}  Rg5 {[%clk 0:00:06]} 41. Nf4 {[%clk 0:00:04]}  Bxf4 {[%clk 0:00:05]} 42. Rxf4 {[%clk 0:00:05]}  Nf6 {[%clk 0:00:05]} 43. Qf2 {[%clk 0:00:05]}  Nd5 {[%clk 0:00:05]} 44. Re4 {[%clk 0:00:06]}  Qd6 {[%clk 0:00:05]} 45. Qd2 {[%clk 0:00:06]}  Re5 {[%clk 0:00:05]} 46. Rxe5 {[%clk 0:00:06]}  Qxe5 {[%clk 0:00:06]} 47. gxh5 {[%clk 0:00:06]}  Qxh5 {[%clk 0:00:06]} 48. Qg2 {[%clk 0:00:06]}  Ne3 {[%clk 0:00:05]} 49. Qe4 {[%clk 0:00:03]}  Qxh3+ {[%clk 0:00:04]} 50. Kg1 {[%clk 0:00:03]}  Qg3+ {[%clk 0:00:04]} 51. Kh1 {[%clk 0:00:03]}  Ng4 {[%clk 0:00:04]} 52. Qg2 {[%clk 0:00:02]}  Qe1+ {[%clk 0:00:04]} 53. Qg1 {[%clk 0:00:03]}  Qh4+ {[%clk 0:00:04]} 54. Kg2 {[%clk 0:00:03]}  Ne5 {[%clk 0:00:04]} 55. Qf2 {[%clk 0:00:03]}  Qg5+ {[%clk 0:00:04]} 56. Kh2 {[%clk 0:00:03]}  Ng4+ {[%clk 0:00:04]} 0-1


[Site "https://www.chess.com"]

[Event "Titled Tuesday Blitz August 16 Early 2022"]
[White "Voege, Tobias"]
[Black "Gardezi, Arsal"]
[WhiteFideId "1270513"]
[BlackFideId "30949521"]
[WhiteElo "2360"]
[BlackElo "1781"]
[Result "1-0"]
[Round "04"]
[TimeControl "180+2"]
[Date "2022.08.18"]
[WhiteClock "0:00:00"]
[BlackClock "0:00:00"]

1. e4 {[%clk 0:00:00]}  e5 {[%clk 0:00:00]} 2. Nf3 {[%clk 0:00:00]}  Nc6 {[%clk 0:00:00]} 3. d4 {[%clk 0:00:00]}  exd4 {[%clk 0:00:00]} 4. Nxd4 {[%clk 0:00:00]}  Nf6 {[%clk 0:00:00]} 5. Nc3 {[%clk 0:00:00]}  Bb4 {[%clk 0:00:00]} 6. Nxc6 {[%clk 0:00:00]}  bxc6 {[%clk 0:00:00]} 7. Bd3 {[%clk 0:00:00]}  O-O {[%clk 0:00:00]} 8. O-O {[%clk 0:00:00]}  h6 {[%clk 0:00:00]} 9. e5 {[%clk 0:00:00]}  Nd5 {[%clk 0:00:00]} 10. Nxd5 {[%clk 0:00:00]}  cxd5 {[%clk 0:00:00]} 11. c3 {[%clk 0:00:00]}  Be7 {[%clk 0:00:00]} 12. Bf4 {[%clk 0:00:00]}  d6 {[%clk 0:00:00]} 13. Re1 {[%clk 0:00:00]}  dxe5 {[%clk 0:00:00]} 14. Bxe5 {[%clk 0:00:00]}  Be6 {[%clk 0:00:00]} 15. Qf3 {[%clk 0:00:00]}  c5 {[%clk 0:00:00]} 16. Bf5 {[%clk 0:00:00]}  Qd7 {[%clk 0:00:00]} 17. Bxe6 {[%clk 0:00:00]}  fxe6 {[%clk 0:00:00]} 18. Qg4 {[%clk 0:00:00]}  Bf6 {[%clk 0:00:00]} 19. b3 {[%clk 0:00:00]}  Bxe5 {[%clk 0:00:00]} 20. Rxe5 {[%clk 0:00:00]}  Rf6 {[%clk 0:00:00]} 21. Rd1 {[%clk 0:00:00]}  Raf8 {[%clk 0:00:00]} 22. Rd2 {[%clk 0:00:00]}  Qf7 {[%clk 0:00:00]} 23. Qe2 {[%clk 0:00:00]}  d4 {[%clk 0:00:00]} 24. cxd4 {[%clk 0:00:00]}  cxd4 {[%clk 0:00:00]} 25. f3 {[%clk 0:00:00]}  Rd8 {[%clk 0:00:00]} 26. Qc4 {[%clk 0:00:00]}  Qd7 {[%clk 0:00:00]} 27. Re4 {[%clk 0:00:00]}  d3 {[%clk 0:00:00]} 28. Re3 {[%clk 0:00:00]}  Rc8 {[%clk 0:00:00]} 29. Qxd3 {[%clk 0:00:00]}  Rc1+ {[%clk 0:00:00]} 30. Kf2 {[%clk 0:00:00]}  Qc7 {[%clk 0:00:00]} 31. Qd8+ {[%clk 0:00:00]}  Kh7 {[%clk 0:00:00]} 32. Qxc7 {[%clk 0:00:00]}  Rxc7 {[%clk 0:00:00]} 33. Rb2 {[%clk 0:00:00]}  a5 {[%clk 0:00:00]} 34. a3 {[%clk 0:00:00]}  Rc6 {[%clk 0:00:00]} 35. b4 {[%clk 0:00:00]}  Rb6 {[%clk 0:00:00]} 36. b5 {[%clk 0:00:00]}  Rf5 {[%clk 0:00:00]} 37. a4 {[%clk 0:00:00]}  Rd5 {[%clk 0:00:00]} 38. Re4 {[%clk 0:00:00]}  Rd1 {[%clk 0:00:00]} 39. Rbe2 {[%clk 0:00:00]}  Ra1 {[%clk 0:00:00]} 40. Rd2 {[%clk 0:00:00]}  Ra3 {[%clk 0:00:00]} 41. h4 {[%clk 0:00:00]}  e5 {[%clk 0:00:00]} 42. Rd5 {[%clk 0:00:00]}  Re6 {[%clk 0:00:00]} 43. g4 {[%clk 0:00:00]}  Kg6 {[%clk 0:00:00]} 44. Rc5 {[%clk 0:00:00]}  Ra2+ {[%clk 0:00:00]} 45. Kg3 {[%clk 0:00:00]}  Ra3 {[%clk 0:00:00]} 46. h5+ {[%clk 0:00:00]}  Kh7 {[%clk 0:00:00]} 47. Rc6 {[%clk 0:00:00]}  Re7 {[%clk 0:00:00]} 48. Rc2 {[%clk 0:00:00]}  Rf7 {[%clk 0:00:00]} 49. Rg2 {[%clk 0:00:00]}  Re7 {[%clk 0:00:00]} 50. Rf2 {[%clk 0:00:00]}  Re6 {[%clk 0:00:00]} 51. Rfe2 {[%clk 0:00:00]}  Rf6 {[%clk 0:00:00]} 52. R2e3 {[%clk 0:00:00]}  Re6 {[%clk 0:00:00]} 53. Rxa3 {[%clk 0:00:00]}  Rf6 {[%clk 0:00:00]} 54. Rae3 {[%clk 0:00:00]}  Re6 {[%clk 0:00:00]} 55. Rxe5 {[%clk 0:00:00]}  Rc6 {[%clk 0:00:00]} 56. bxc6 {[%clk 0:00:00]} 1-0


[Site "https://www.chess.com"]

[Event "Titled Tuesday Blitz August 16 Early 2022"]
[White "Weetik, Vjacheslav"]
[Black "Salman, Pavel"]
[WhiteFideId "4153472"]
[BlackFideId "24153753"]
[WhiteElo "2469"]
[BlackElo "2143"]
[Result "1-0"]
[Round "04"]
[TimeControl "180+2"]
[Date "2022.08.18"]
[WhiteClock "0:00:00"]
[BlackClock "0:00:00"]

1. d4 {[%clk 0:00:00]}  Nf6 {[%clk 0:00:00]} 2. Bf4 {[%clk 0:00:00]}  c5 {[%clk 0:00:00]} 3. e3 {[%clk 0:00:00]}  g6 {[%clk 0:00:00]} 4. Nf3 {[%clk 0:00:00]}  Bg7 {[%clk 0:00:00]} 5. Nbd2 {[%clk 0:00:00]}  O-O {[%clk 0:00:00]} 6. c3 {[%clk 0:00:00]}  d6 {[%clk 0:00:00]} 7. dxc5 {[%clk 0:00:00]}  dxc5 {[%clk 0:00:00]} 8. Qc2 {[%clk 0:00:00]}  Nc6 {[%clk 0:00:00]} 9. Bb5 {[%clk 0:00:00]}  Be6 {[%clk 0:00:00]} 10. Bxc6 {[%clk 0:00:00]}  bxc6 {[%clk 0:00:00]} 11. Be5 {[%clk 0:00:00]}  h5 {[%clk 0:00:00]} 12. O-O {[%clk 0:00:00]}  Qc8 {[%clk 0:00:00]} 13. c4 {[%clk 0:00:00]}  Rd8 {[%clk 0:00:00]} 14. Rfd1 {[%clk 0:00:00]}  Bf5 {[%clk 0:00:00]} 15. e4 {[%clk 0:00:00]}  Bg4 {[%clk 0:00:00]} 16. h3 {[%clk 0:00:00]}  Bxh3 {[%clk 0:00:00]} 17. gxh3 {[%clk 0:00:00]}  Qxh3 {[%clk 0:00:00]} 18. Bxf6 {[%clk 0:00:00]}  Bxf6 {[%clk 0:00:00]} 19. e5 {[%clk 0:00:00]}  Qg4+ {[%clk 0:00:00]} 20. Kf1 {[%clk 0:00:00]}  Qh3+ {[%clk 0:00:00]} 21. Ke2 {[%clk 0:00:00]}  Qe6 {[%clk 0:00:00]} 22. Ne4 {[%clk 0:00:00]}  Bxe5 {[%clk 0:00:00]} 23. Nxc5 {[%clk 0:00:00]}  Qf6 {[%clk 0:00:00]} 24. Nd7 {[%clk 0:00:00]}  Rxd7 {[%clk 0:00:00]} 25. Rxd7 {[%clk 0:00:00]}  Bxb2 {[%clk 0:00:00]} 26. Rad1 {[%clk 0:00:00]}  Kg7 {[%clk 0:00:00]} 27. Qe4 {[%clk 0:00:00]}  Rb8 {[%clk 0:00:00]} 28. R1d2 {[%clk 0:00:00]}  Bc3 {[%clk 0:00:00]} 29. Rc2 {[%clk 0:00:00]}  Bb4 {[%clk 0:00:00]} 30. Qe5 {[%clk 0:00:00]}  Bd6 {[%clk 0:00:00]} 31. Qxf6+ {[%clk 0:00:00]}  Kxf6 {[%clk 0:00:00]} 32. Rxa7 {[%clk 0:00:00]}  g5 {[%clk 0:00:00]} 33. Ra6 {[%clk 0:00:00]}  c5 {[%clk 0:00:00]} 34. Nd2 {[%clk 0:00:00]}  Ke5 {[%clk 0:00:00]} 35. Rc3 {[%clk 0:00:00]}  f5 {[%clk 0:00:00]} 36. Re3+ {[%clk 0:00:00]}  Kf6 {[%clk 0:00:00]} 37. Rd3 {[%clk 0:00:00]}  Rb2 {[%clk 0:00:00]} 38. a4 {[%clk 0:00:00]}  h4 {[%clk 0:00:00]} 39. Kf1 {[%clk 0:00:00]}  g4 {[%clk 0:00:00]} 40. a5 {[%clk 0:00:00]}  h3 {[%clk 0:00:00]} 41. Ra8 {[%clk 0:00:00]}  Ra2 {[%clk 0:00:00]} 42. a6 {[%clk 0:00:00]}  h2 {[%clk 0:00:00]} 43. Kg2 {[%clk 0:00:00]}  Ra1 {[%clk 0:00:00]} 44. Rh8 {[%clk 0:00:00]}  Rxa6 {[%clk 0:00:00]} 45. Nf1 {[%clk 0:00:00]}  Ra2 {[%clk 0:00:00]} 46. Nxh2 {[%clk 0:00:00]}  g3 {[%clk 0:00:00]} 47. Nf3 {[%clk 0:00:00]}  Rxf2+ {[%clk 0:00:00]} 48. Kg1 {[%clk 0:00:00]}  e5 {[%clk 0:00:00]} 49. Rxd6+ {[%clk 0:00:00]}  Ke7 {[%clk 0:00:00]} 50. Rd5 {[%clk 0:00:00]}  Rxf3 {[%clk 0:00:00]} 51. Rxe5+ {[%clk 0:00:00]}  Kd6 {[%clk 0:00:00]} 52. Rd5+ {[%clk 0:00:00]}  Ke6 {[%clk 0:00:00]} 53. Rh6+ {[%clk 0:00:00]}  Kf7 {[%clk 0:00:00]} 54. Rd7+ {[%clk 0:00:00]}  Ke8 {[%clk 0:00:00]} 55. Rb7 {[%clk 0:00:00]} 1-0


[Site "https://www.chess.com"]